Cogmind - Beta 14 *** ADVENTURER MODE // 2025.03.10 @ 21:47:48 Player: Lee Result: Destroyed by D-53 Grenadier with Mini Grenade Launcher Performance ------------- Evolutions (0) 0 Regions Visited (2) 400 Robots Destroyed (13) 65 Value Destroyed (266) 266 Prototype IDs (1) 20 Alien Tech Used (0) 0 Bonus (0) 0 TOTAL SCORE: 751 Bonus ------- None Cogmind --------- Core Integrity 0/250 Matter 300/300 Energy 99/100 System Corruption 0% Temperature Cool (0) Movement Core (1450) Ox28 Location -10/Mines Parts ------- > --- POWER (1) -------- (None) > --- PROPULSION (2) --- (None) > --- UTILITY (2) ------ Small Storage Unit Huge Storage Unit > --- WEAPON (2) ------- (None) > --- INVENTORY (25) --- Light Ion Engine Light Ion Engine Light Treads Light Treads Light Treads Light Treads Light Treads Aluminum Leg Wheel Compact Wheel Medium Battery (150) Medium Laser Medium Laser Medium Laser Improved Medium Laser Improved Medium Laser Improved Medium Laser Beam Cannon Assault Rifle Light Assault Rifle Peak State ------------ > --- POWER ------------ Ion Engine > --- PROPULSION ------- Aluminum Leg Aluminum Leg > --- UTILITY ---------- Small Storage Unit Huge Storage Unit > --- WEAPON ----------- Medium Laser Improved Medium Laser > --- INVENTORY -------- Light Ion Engine Light Ion Engine Light Treads Light Treads Light Treads Light Treads Light Treads Wheel Compact Wheel Medium Battery Medium Laser Medium Laser Medium Laser Improved Medium Laser Improved Medium Laser Beam Cannon Assault Rifle Light Assault Rifle [Rating: 11] Favorites ----------- Power Ion Engine Engine Ion Engine Propulsion Aluminum Leg Leg Aluminum Leg Wheel Wheel Utility Small Storage Unit Storage Small Storage Unit Weapon Medium Laser Energy Gun Medium Laser Build | -11 -10 -10 ------- Run | Yrd Mat Min Slots Evolved . | . . . Power . | . . . Propulsion . | . . . Utility . | . . . Weapon . | . . . Parts Attached 13 | 6 7 . Power 2 | 2 . . Engine 2 | 2 . . Core . | . . . Reactor . | . . . Propulsion 5 | 2 3 . Treads . | . . . Leg 4 | 1 3 . Wheel 1 | 1 . . Hover . | . . . Flight . | . . . Utility 2 | 1 1 . Device . | . . . Storage 2 | 1 1 . Processor . | . . . Hackware . | . . . Protection . | . . . Artifact . | . . . Weapon 4 | 1 3 . Energy Gun 4 | 1 3 . Energy Cannon . | . . . Ballistic Gun . | . . . Ballistic Cannon . | . . . Launcher . | . . . Special Weapon . | . . . Impact Weapon . | . . . Slashing Weapon . | . . . Piercing Weapon . | . . . Special Melee Weapon . | . . . Unidentified Prototypes 1 | . 1 . Parts Lost 5 | . . 5 Power 1 | . . 1 Propulsion 2 | . . 2 Utility . | . . . Weapon 2 | . . 2 Highest Loss Streak 5 | . . 5 To Critical Strikes . | . . . Average Slot Usage (%) 93 | . 92 97 Engine 13 | . 14 12 Leg 25 | . 25 26 Wheel 2 | . 2 . Storage 25 | . 25 28 Energy Gun 23 | . 23 28 Peak Build Rating 11 | 5 11 11 Average Rating 7 | 3 7 10 On Entrance 5 | . 5 11 Naked Turns . | . . . Heaviest Build 95 | 12 95 95 Greatest Support 20 | 10 20 20 Greatest Overweight (x) 28 | 1 4 28 Average Overweight (x) 3 | . 3 5 Largest Inventory Capacity 25 | 8 25 25 Average Capacity 21 | 7 22 25 Most Carried 20 | 6 19 20 Average Carried 11 | 5 10 19 Final Capacity 25 | 8 25 25 Final Carried 20 | 6 19 20 Class Distribution -------------------- 100% | Mutant Dominant Class ---------------- Mutant | -10/Materials Mutant | -10/Mines Resources | -11 -10 -10 ----------- Run | Yrd Mat Min Matter Collected 327 | 260 57 10 Remotely . | . . . Salvage Created 472 | 62 260 150 Parts 17 | 2 11 4 Haulers Intercepted 1 | . 1 . Recyclers Shooed 3 | . 2 1 Parts Field Recycled . | . . . Retrieved Matter . | . . . Parts Self-Destructed . | . . . Prevented . | . . . Kills | -11 -10 -10 ------- Run | Yrd Mat Min Combat Hostiles Destroyed 9 | . 7 2 Guns 7 | . 5 2 AOE 2 | . 2 . Classes Destroyed 5 | 1 4 . Hauler 1 | . 1 . Recycler 2 | 1 . 1 Watcher 1 | . 1 . Swarmer 4 | . 4 . Grunt 5 | . 3 2 Best Kill Streak 3 | 1 3 2 Combat Bots Only 3 | . 3 2 Max Kills in Single Turn 2 | 1 2 1 Gunslinging . | . . . Exploded 2 | . 2 . Melee . | . . . Uniques/NPCs Destroyed . | . . . Combat | -11 -10 -10 -------- Run | Yrd Mat Min Hostile Shots Fired 115 | . 44 71 Missed 45 | . 20 25 Damage Taken 889 | 20 166 703 Core 263 | 10 31 222 Absorbed by Shields . | . . . Ignored by Resistances 265 | 6 54 205 Core Remaining (%) 96 | 96 . . Volleys Fired 45 | 7 32 6 Largest 2 | 1 2 2 Hottest 106 | 40 100 106 Shots Fired 65 | 7 46 12 Gun 65 | 7 46 12 Cannon . | . . . Launcher . | . . . Special . | . . . Kinetic . | . . . Thermal 40 | . 28 12 Explosive . | . . . Electromagnetic 25 | 7 18 . Robot Hit Streak 13 | 5 13 8 Robot Miss Streak 2 | 1 2 1 Penetration Max . | . . . Secondary Targets . | . . . Shots Hit Robots 48 | 6 32 10 Core Hits 22 | 3 15 4 Critical Kills . | . . . Critical Parts Destroyed . | . . . Critical Strikes 1 | . 1 . Burn 1 | . 1 . Melee Attacks . | . . . Impact . | . . . Slashing . | . . . Piercing . | . . . Sneak Attacks . | . . . Combat Hostiles . | . . . Follow-up Attacks . | . . . Damage Inflicted 819 | 131 535 153 Guns 657 | 81 425 151 Cannons . | . . . Explosions 153 | 50 103 . Melee . | . . . Ramming 9 | . 7 2 Kinetic . | . . . Thermal 517 | 50 316 151 Explosive . | . . . Electromagnetic 293 | 81 212 . Impact . | . . . Slashing . | . . . Piercing . | . . . Highest Corruption . | . . . Average Corruption . | . . . Corruption Purged . | . . . Corruption Blocked . | . . . Overload Shots . | . . . Overflow Damage . | . . . Projectiles . | . . . Explosions . | . . . Melee . | . . . Knockbacks . | . . . Impact . | . . . Kinetic . | . . . Secondary . | . . . Self-Inflicted Damage 20 | 20 . . Shots 1 | 1 . . Rammed . | . . . Targets Rammed 3 | . 2 1 Kicked 3 | . 2 1 Crushed . | . . . Highest Temperature 195 | 12 195 144 Average Temperature 51 | 12 48 60 Received Heat Transfer 183 | . 54 129 Siege Activations . | . . . Robots Corrupted . | . . . Combat Hostiles . | . . . Parts Fried . | . . . Impact Corruptions . | . . . Robots Melted . | . . . Combat Hostiles . | . . . Parts Melted 3 | . 2 1 Heat Transferred 1323 | 100 853 370 Parts Sabotaged . | . . . Parts Stolen . | . . . Parts Stripped . | . . . Power Chain Reactions 2 | 1 1 . Alert | -11 -10 -10 ------- Run | Yrd Mat Min Peak Influence 152 | 5 152 57 Initial 2 | . 2 2 Average 50 | 2 54 49 Maximum Alert Level . | . . . Low Security (%) 100 | 100 100 100 Level 1 . | . . . Level 2 . | . . . Level 3 . | . . . Level 4 . | . . . Level 5 . | . . . High Security . | . . . Max Security . | . . . Squads Dispatched 1 | . 1 . Investigation 1 | . 1 . Extermination . | . . . Reinforcement . | . . . Assault . | . . . Garrison . | . . . Intercept . | . . . Searches Triggered . | . . . Construction Impeded . | . . . Haulers Reinforced . | . . . Active Scanning Responses . | . . . Cargo Convoy Interrupts . | . . . Stealth | -11 -10 -10 --------- Run | Yrd Mat Min Distress Signals 1 | . 1 . Communications Jammed . | . . . Distress Signals . | . . . Times Spotted 34 | . 19 15 Peak Tracking Total 14 | . 5 14 Tactical Retreats 4 | . 3 1 Traps | -11 -10 -10 ------- Run | Yrd Mat Min Traps Triggered 1 | . 1 . Indirectly . | . . . Trap Hack Attempts . | . . . Triggered . | . . . Disarmed . | . . . Reprogrammed . | . . . Reused . | . . . Traps Extracted . | . . . Installed . | . . . Triggered . | . . . Machines | -11 -10 -10 ---------- Run | Yrd Mat Min Machines Disabled . | . . . Max in Single Turn . | . . . Machines Repaired . | . . . Machines Dismantled . | . . . Machines Sabotaged . | . . . Overloaded Fab Kills . | . . . Hacking | -11 -10 -10 --------- Run | Yrd Mat Min Machines Accessed . | . . . Terminals . | . . . Fabricators . | . . . Repair Stations . | . . . Recycling Units . | . . . Scanalyzers . | . . . Garrison Access . | . . . Total Hacks . | . . . Successful . | . . . Failed . | . . . Catastrophic . | . . . Database Lockouts . | . . . Manual . | . . . Terminals . | . . . Fabricators . | . . . Repair Stations . | . . . Recycling Units . | . . . Scanalyzers . | . . . Garrison Access . | . . . Terminal Hacks . | . . . Fabricator Hacks . | . . . Repair Station Hacks . | . . . Recycling Unit Hacks . | . . . Scanalyzer . | . . . Garrison Access Hacks . | . . . Unauthorized Hacks . | . . . Terminals . | . . . Fabricators . | . . . Repair Stations . | . . . Recycling Units . | . . . Scanalyzers . | . . . Garrison Access . | . . . Data Cores Recovered . | . . . Used . | . . . Hacking Detections . | . . . Full Trace Events . | . . . Feedback Events . | . . . Feedback Blocked . | . . . Robot Schematics Acquired . | . . . Robots Built . | . . . Authchips . | . . . Time . | . . . Total Robot Build Rating . | . . . Part Schematics Acquired . | . . . Parts Built . | . . . Authchips . | . . . Time . | . . . Total Part Build Rating . | . . . Parts Repaired . | . . . Time . | . . . Parts Recycled . | . . . Recycled Matter . | . . . Retrieved Matter . | . . . Retrieved Components . | . . . Parts Scanalyzed . | . . . Part Schematics Acquired . | . . . Parts Damaged . | . . . Bothacking | -11 -10 -10 ------------ Run | Yrd Mat Min Used RIF Installer . | . . . Robots Hacked . | . . . Non-combat . | . . . Combat . | . . . Robot Hacks Applied . | . . . Relay Couplers Released . | . . . Fabnet Peak Effective % . | . . . Robots Rewired . | . . . Allies Hacked . | . . . Hacks Repelled . | . . . Allies | -11 -10 -10 -------- Run | Yrd Mat Min Total Allies . | . . . Largest Group . | . . . Highest-Rated Group . | . . . Highest-Rated Ally . | . . . Total Orders . | . . . Ally Attacks . | . . . Total Damage . | . . . Kills . | . . . Allies Corrupted . | . . . Allies Melted . | . . . Intel | -11 -10 -10 ------- Run | Yrd Mat Min Robot Analysis Total . | . . . Derelict Logs Recovered . | . . . Drone Launches . | . . . Drone Recoveries . | . . . Exploration | -11 -10 -10 ------------- Run | Yrd Mat Min Turns Passed 1175 | 86 955 134 Spaces Moved 317 | 42 247 28 Core 13 | 12 . 1 Treads . | . . . Legs 300 | 26 247 27 Wheels 4 | 4 . . Hover . | . . . Flight . | . . . Fastest Speed 50 | 50 190 400 Average Speed 325 | 140 343 447 Slowest Speed 1450 | 190 400 1450 Overloaded Moves . | . . . Propulsion Burnouts . | . . . Robots Hopped . | . . . Cave-ins Triggered . | . . . Exploration Rate (%) 27 | 4 56 21 Regions Visited 2 Branch Regions 1 Pre-discovered Areas . | . . . Known Exits Taken . | . . . Unknown Exits Taken 2 | 1 1 . Scrap Searched . | . . . Spaces Dug . | . . . Terrain Destroyed 5 | . 5 . Melee . | . . . Projectile . | . . . AOE 5 | . 5 . Terrain Rammed . | . . . Walls Destroyed . | . . . Machines Disabled . | . . . Actions | -11 -10 -10 --------- Run | Yrd Mat Min Total 401 | 61 304 36 Wait . | . . . Move 315 | 41 246 28 Hop . | . . . Pick Up 22 | 6 15 1 Fast Attach 6 | 5 1 . Attach 1 | . 1 . Detach . | . . . Swap 6 | 1 5 . Drop 3 | 1 2 . Fire 45 | 7 32 6 Melee . | . . . Ram . | . . . Kick 3 | . 2 1 Crush . | . . . Escape Stasis . | . . . Rewire . | . . . Trap . | . . . Miscellaneous . | . . . Route ------- -11/Scrapyard -10/Materials -10/Mines (discovered 1 exit: [*Mat]) History --------- Turn | Location | Event 7 | -11/Scrapyard | Discovered new exit (range 15) 87 | -11/Scrapyard | Entered Materials 312 | -10/Materials | Build established: Mutant 969 | -10/Materials | Discovered new exit (range 7) 1042 | -10/Materials | Entered Mines 1096 | -10/Mines | Discovered new exit (range 15) 1133 | -10/Mines | Assembled infested the area 1138 | -10/Mines | Assisted by a Guerilla fighting off Assembled 1165 | -10/Mines | Core integrity fell below 50% 1173 | -10/Mines | Core integrity fell below 20% 1176 | -10/Mines | Destroyed by D-53 Grenadier with Mini Grenade Launcher Last Messages --------------- 01161_ Kicked as-33260 out of the way. 01162_ K-01 Serf collects debris. 01166_ C-30 ARC bursts open, deploying its payload. 01166_ D-53 Grenadier unfolds itself. 01166_ K-01 Serf collects debris. 01168_ Aluminum Leg destroyed. 01168_ Ion Engine destroyed. 01169_ as-66182 destroyed. 01169_ as-33260 destroyed. 01169_ as-58581 destroyed. 01169_ K-01 Serf collects debris. 01170_ as-43134 destroyed. 01170_ Imp. Medium Laser destroyed. 01170_ as-92571 destroyed. 01170_ as-16094 destroyed. 01172_ as-24623 destroyed. 01174_ Med. Laser destroyed. 01174_ Aluminum Leg destroyed. 01174_ as-07458 destroyed. Map ----- +----------------------------------------------------+ | ??????????????????????###??###???????????????????? | | ????????????????###### ### ##??????????????????? | | ???????????????## ##?????????????????? | | ??????????????## #?????????????????? | | ??????????????# #?????????????????? | | ??????????????# #??????????????????? | | ??????????????## ## ##???????????????????? | | ???????????????### #? #?????????????????????? | | ?????????????????## ## #?????????????????????? | | ??????????????????##% # #?????????????????????? | | ???????????????????## # #?????????????????????? | | ????????????????????# # #?????????????????????? | | ????????????????????##% #???????? #???????????? | | ?????????????????????### ##???### #???????????? | | ??????????????????????## ##?# ??????????? | | ??????????????????????# ## ?????????? | | ??????????????????????# ?????????? | | ??????????????????????# """ ?????????? | | ??????????????????????## """ ? ??????????? | | ??????????????####????## """ #?????????? | | ?????????????## ##### #??????????? | | ????????# #### # ##??????????? | | ????????#"% $ #???????????? | | ????????# d #???????????? | | ??????????#### d * ### #???????????? | | ?????????????#### @ =#??# ##???????????? | | ????????????????# < #?? #????????????? | | ????????????????# #????##????????????? | | ????????????? = a #??????????????????? | | ?????????? a ; #??????????????????? | | ??????????####### ##### # #a #??????????????????? | | ????????????????###????# ### #??????????????????? | | ???????????????????????# ?? #??????????????????? | | ???????????????????????###??? #??????????????????? | | ????????????????????????????? ;??????????????????? | | ?????????????????????????????! ??????????????????? | | ??????????????????????????????? ?????????????????? | | ??????????????????????????????? ?????????????????? | | ???????????????????????????????? ????????????????? | | ?????????????????????????????????????????????????? | | ?????????????????????????????????????????????????? | | ?????????????????????????????????????????????????? | | ?????????????????????????????????????????????????? | | ?????????????????????????????????????????????????? | | ?????????????????????????????????????????????????? | | ?????????????????????????????????????????????????? | | ?????????????????????????????????????????????????? | | ?????????????????????????????????????????????????? | | ?????????????????????????????????????????????????? | | ?????????????????????????????????????????????????? | +----------------------------------------------------+ Best States ------------- Heat Dissipation 25 Energy Generation 10 Energy Capacity 250 Matter Stores 300 Matter Capacity 300 Sight Range 16 Terrain Scan Density 10 Resistance: KI 20 Resistance: TH 20 Resistance: EX 20 Resistance: EM 20 Resistance: I 20 Resistance: S 20 Resistance: P 20 Evasion (%) 50 Offensive Hacking 10 Item Schematics ----------------- None Robot Schematics ------------------ None Fabricated ------------ Nothing Alien Tech Used ----------------- None Achievements -------------- None Challenges ------------ None Game ------ Seed DisposableCryofiberUnit Manual? 0 Play Time 00:10:36 Cumulative 30.1 hours Start 2025.03.10 @ 20:34:46 End 2025.03.10 @ 21:47:48 Sessions 2 Manual Loads 0 Difficulty Adventurer Special Mode None Game No. 56 Rogue 7 Adventurer 49 Explorer 0 Win Type - Total 0 Types 0/0/0/0/0/0/0/0/0 Lore% 6 Gallery% 27 Achievement% 23 Wizard Run 0 Options --------- Layout 2 ASCII 0 Keyboard 0 Movement Mouse Keybinds 0 Fullscreen 1 Font 24/Smallcaps Map View 50x44 Zoom Use 0% Tactical HUD 1 Map Filters NONE Filters NONE Steam 1 RUN: 39199a0f-da73-48f9-a8a9-53cd5956afe6